lending/lending_fUSD_20250516
["ID","MTS","AMOUNT","RATE_DAILY","PERIOD"]
[361234508,1747380632774,-500.0,0.00010999,2]
[361234509,1747380632785,-500.0,0.00010999,2]
[361234510,1747380632794,-500.0,0.00010999,2]
[361234511,1747380632804,-500.0,0.00010999,2]
[361234512,1747380632816,-500.0,0.00010999,2]
[361234513,1747380632826,-500.0,0.00010999,2]
[361234514,1747380632835,-500.0,0.00010999,2]
[361234515,1747380632845,-500.0,0.00010999,2]
[361234516,1747380632854,-500.0,0.00010999,2]
[361234517,1747380632863,-451.89109377,0.00010999,2]
[361234518,1747380632872,-487.25748793,0.00010999,2]
[361234519,1747380632884,-12.74251207,0.00010999,2]
[361234520,1747380632893,-500.0,0.00010999,2]
[361234521,1747380632903,-500.0,0.00010999,2]
[361234522,1747380632912,-439.25748793,0.00010999,2]
[361234523,1747380632929,-60.74251207,0.00010999,2]
[361234524,1747380632938,-500.0,0.00010999,2]
[361234525,1747380632947,-150.95804792,0.00010999,2]
[361234526,1747380632977,-349.04195208,0.00010999,2]
[361234527,1747380632986,-152.80772934,0.00010999,2]
[361234528,1747380632998,-347.19227066,0.00010999,2]
[361234529,1747380633007,-175.446791,0.00010999,2]
[361234530,1747380633030,-324.553209,0.00010999,2]
[361234531,1747380633040,-500.0,0.00010999,2]
[361234532,1747380633050,-500.0,0.00010999,2]
[361234533,1747380633060,-500.0,0.00010999,2]
[361234534,1747380633069,-500.0,0.00010999,2]
[361234535,1747380633080,-500.0,0.00010999,2]
[361234536,1747380633089,-500.0,0.00010999,2]
[361234537,1747380633099,-86.61614891,0.00010999,2]
[361234538,1747380633110,-413.38385109,0.00010999,2]
[361234539,1747380633119,-500.0,0.00010999,2]
[361234540,1747380633129,-500.0,0.00010999,2]
[361234541,1747380633138,-141.97136821,0.00010999,2]
[361234542,1747380637139,1000.92,0.00012,10]
[361234544,1747380637955,-358.02863179,0.00010999,2]
[361234545,1747380637965,-411.86149065,0.00010999,2]
[361234546,1747380637976,-88.13850935,0.00010999,2]
[361234547,1747380637985,-500.0,0.00010999,2]
[361234548,1747380637994,-500.0,0.00010999,2]
[361234549,1747380638004,-335.84149065,0.00010999,2]
[361234550,1747380638044,-164.15850935,0.00010999,2]
[361234551,1747380638054,-599.99999999,0.00010999,2]
[361234552,1747380638063,-7622.70149066,0.00011,2]
[361234553,1747380638075,-7000.0,0.00011,2]
[361234554,1747380638217,-42109.15078795,0.00011,2]
[361234555,1747380638229,-12446.81598786,0.00011,2]
[361234556,1747380638240,-11720.67679787,0.00011,2]
[361234560,1747380638288,-16574.8515288,0.00011,2]
[361234563,1747380638299,-5869.39126525,0.00011,2]
[361234565,1747380638310,-14438.82183443,0.00011,2]
[361234567,1747380638321,-4691.97915948,0.00011,2]
[361234569,1747380638336,-5203.74130837,0.00011,2]
[361234574,1747380638381,-396.34416,0.00011,2]
[361234583,1747380640098,-1698.94,0.00011,2]
[361234584,1747380640120,-96188.58557571,0.00011,2]
[361234585,1747380640130,-250.0,0.00011401,2]
[361234586,1747380640139,-200.0,0.00011803,2]
[361234587,1747380640148,-1000.0,0.00011822,2]
[361234588,1747380640158,-625.7,0.00011846,2]
[361234589,1747380640167,-150.0,0.00011889,2]
[361234590,1747380640176,-541.39,0.00011896,2]
[361234591,1747380640185,-460.45164526,0.000119,2]
[361234592,1747380640194,-250.0,0.00011905,2]
[361234593,1747380640203,-420.0,0.00012086,2]
[361234594,1747380640213,-1680.0,0.00012098,2]
[361234595,1747380640222,-250.0,0.00012099,2]
[361234596,1747380640231,-250.0,0.000121,2]
[361234597,1747380640240,-1279.21,0.00012228,2]
[361234598,1747380640250,-460.45164502,0.00012245,2]
[361234599,1747380640259,-1066.96393661,0.00012253,2]
[361234600,1747380640270,-452.8,0.00012295,2]
[361234601,1747380640279,-162.65,0.000123,2]
[361234602,1747380640290,-486.89,0.000123,2]
[361234603,1747380640299,-452.8,0.000123,2]
[361234604,1747380640310,-150.2,0.000123,2]
[361234605,1747380640320,-162.65,0.000123,2]
[361234606,1747380640332,-352.99,0.000123,2]
[361234607,1747380640342,-150.2,0.000123,2]
[361234608,1747380640352,-905.6,0.000123,2]
[361234609,1747380640362,-975.7213348,0.0001235,2]
[361234610,1747380640371,-1200.0,0.000124,4]
[361234611,1747380640381,-2500.0,0.000125,4]
[361234612,1747380640391,-460.45164502,0.0001259,2]
[361234613,1747380640401,-207.4,0.00012592,2]
[361234614,1747380640410,-1000.0,0.00012592,2]
[361234615,1747380640420,-5194.8247,0.000126,2]
[361234616,1747380640429,-336.4759,0.000126,2]
[361234617,1747380640439,-1507.928,0.000126,2]
[361234618,1747380640448,-3800.0,0.000126,4]
[361234619,1747380640457,-256.36155808,0.00012685,2]
[361234620,1747380640467,-162.65,0.000127,2]
[361234621,1747380640477,-150.2,0.000127,2]
[361234622,1747380640486,-5000.0,0.000127,4]
[361234623,1747380640496,-172.85706745,0.00012711,2]
[361234624,1747380640505,-853.73225352,0.00012735,2]
[361234625,1747380640515,-151.0,0.00012792,2]
[361234626,1747380640525,-668.65185757,0.00012792,2]
[361234627,1747380640535,-357.56865251,0.00012797,2]
[361234628,1747380640544,-560.41849044,0.000128,2]
[361234629,1747380640554,-6300.0,0.000128,4]
[361234630,1747380640563,-151.0,0.00012811,2]
[361234631,1747380640572,-151.0,0.00012811,2]
[361234632,1747380640583,-151.0,0.00012811,2]
[361234633,1747380640592,-151.0,0.00012811,2]
[361234634,1747380640602,-151.0,0.00012811,2]
[361234635,1747380640611,-151.0,0.00012811,2]
[361234636,1747380640620,-151.0,0.00012811,2]
[361234637,1747380640629,-151.0,0.00012811,2]
[361234638,1747380640639,-151.0,0.00012811,2]
[361234639,1747380640648,-151.0,0.00012811,2]
[361234640,1747380640658,-151.0,0.00012811,2]
[361234641,1747380640667,-151.0,0.00012811,2]
[361234642,1747380640676,-151.0,0.00012811,2]
[361234643,1747380640685,-151.0,0.00012811,2]
[361234644,1747380640695,-151.0,0.00012811,2]
[361234645,1747380640705,-151.0,0.00012811,2]
[361234646,1747380640714,-151.0,0.00012811,2]
[361234647,1747380640723,-151.0,0.00012811,2]
[361234648,1747380640733,-151.0,0.00012811,2]
[361234649,1747380640747,-161.18732624,0.00012811,2]
[361234650,1747380640757,-541.83024917,0.00012812,2]
[361234651,1747380640766,-151.0,0.00012878,2]
[361234652,1747380640776,-164.13302,0.00012878,2]
[361234653,1747380640786,-1147.254617,0.00012878,2]
[361234654,1747380640795,-1147.254617,0.00012878,2]
[361234655,1747380640804,-209.07,0.00012883,2]
[361234656,1747380640815,-209.07,0.00012886,2]
[361234657,1747380640824,-209.07,0.00012886,2]
[361234658,1747380640835,-209.07,0.00012886,2]
[361234659,1747380640844,-209.07,0.00012886,2]
[361234660,1747380641103,-22528.3907319,0.00012893,2]
[361234661,1747380641113,-37554.28926568,0.00012896,2]
[361234662,1747380641123,-8232.73979145,0.00012896,2]
[361234663,1747380641132,-37554.28926565,0.00012896,2]
[361234664,1747380641141,-8232.73979141,0.00012896,2]
[361234665,1747380641151,-37554.28926565,0.00012897,2]
[361234666,1747380641160,-8232.73979141,0.00012897,2]
[361234667,1747380641170,-37554.28926565,0.00012897,2]
[361234668,1747380641179,-8232.73979141,0.00012897,2]
[361234669,1747380641188,-37554.28926565,0.00012898,2]
[361234670,1747380641197,-8232.73979141,0.00012898,2]
[361234671,1747380641207,-37554.28926565,0.00012898,2]
[361234672,1747380641216,-8232.73979141,0.00012898,2]
[361234673,1747380641225,-37554.28926565,0.00012899,2]
[361234674,1747380641234,-8232.73979141,0.00012899,2]
[361234675,1747380641244,-37554.28926565,0.00012899,2]
[361234676,1747380641253,-8232.73979141,0.00012899,2]
[361234677,1747380641262,-37554.28926565,0.000129,2]
[361234678,1747380641272,-8232.73979141,0.000129,2]
[361234679,1747380641282,-173.17623366,0.000129,2]
[361234680,1747380641291,-1346.261,0.000129,2]
[361234681,1747380641301,-191.27073432,0.000129,2]
[361234682,1747380641311,-1200.0,0.000129,4]
[361234683,1747380641320,-37554.28926565,0.000129,2]
[361234684,1747380641329,-8232.73979141,0.000129,2]
[361234685,1747380641339,-566.92917316,0.000129,2]
[361234686,1747380641349,-938.3122472,0.00012934,2]
[361234687,1747380641358,-460.45164502,0.00012934,2]
[361234688,1747380641368,-210.33997165,0.00012954,2]
[361234689,1747380641377,-500.0,0.00012973,2]
[361234690,1747380641386,-500.0,0.00012973,2]
[361234691,1747380641396,-500.0,0.00012973,2]
[361234692,1747380641405,-500.0,0.00012973,2]
[361234693,1747380641414,-500.0,0.00012973,2]
[361234694,1747380641423,-500.0,0.00012973,2]
[361234695,1747380641433,-156.47663936,0.0001299,2]
[361234696,1747380641443,-156.47663936,0.0001299,2]
[361234697,1747380641454,-151.0,0.00012991,2]
[361234698,1747380641464,-1147.254617,0.00012991,2]
[361234699,1747380641473,-1147.254617,0.00012991,2]
[361234700,1747380641482,-147324.1996879,0.00012996,2]
[361234701,1747380641494,-671.60174354,0.00012996,2]
[361234702,1747380641522,-1303.302,0.00012996,2]
[361234703,1747380641554,-1075.22818176,0.00012996,2]
[361234704,1747380641565,-392.50757548,0.00012996,2]
[361234705,1747380641577,-594.96847343,0.00012996,2]
[361234706,1747380641598,-13445.80590325,0.00012996,2]
[361234707,1747380641630,-1838.0,0.00012996,2]
[361234708,1747380642393,-777.12919889,0.00012996,2]
[361234721,1747380643816,-68942.44458555,0.00012996,2]
[361234722,1747380643827,-15997.8460718,0.00012996,2]
[361234723,1747380643836,-8235.6112366,0.00012996,2]
[361234724,1747380643846,-877.55111494,0.00012999,2]
[361234725,1747380643855,-24006.54699201,0.00013,2]
[361234726,1747380643867,-1395.02696505,0.00013,2]
[361234727,1747380643878,-7243.6,0.00013,2]
[361234730,1747380644217,-38877.3639,0.00013,2]
[361234731,1747380644229,-11929.34750335,0.00013,2]
[361234740,1747380646065,-517.389,0.00013,2]
[361234741,1747380646077,-385.0,0.00013,2]
[361234742,1747380646089,-138619.20934284,0.00013,2]
[361234743,1747380646099,-745851.75000375,0.00013,2]
[361234744,1747380646157,-4799.760005,0.00013,2]
[361234745,1747380646280,-805.3918729,0.00013,2]
[361234746,1747380653272,1760.06536508,0.00025,30]
[361234747,1747380767785,-227.43110628,0.0001,2]
[361234748,1747380769397,-222.56889372,0.0001,2]
[361234749,1747380983421,407.67,0.00021945,30]
[361234750,1747381078877,-200.0,9.999e-05,2]
[361234751,1747381080417,-252.86038133,9.999e-05,2]
[361234752,1747381083461,-192.73622149,9.999e-05,2]
[361234753,1747381086931,-170.55339718,9.999e-05,2]
[361234754,1747381090298,-151.53640827,9.999e-05,2]
[361234755,1747381092511,-295.20140833,9.999e-05,2]
[361234756,1747381094037,-42.0321834,9.999e-05,2]
[361234757,1747381122165,500.0,0.00025,30]
[361234758,1747381145271,500.0,0.00025,30]
[361234759,1747381163657,500.0,0.00025,30]
[361234760,1747381173671,775.56533094,0.00025,30]
[361234761,1747381276393,150.0,1e-08,2]
[361234762,1747381407361,1351.82,0.00025,30]
[361234763,1747381585009,150.0,0.00011699,7]
[361234773,1747381832368,-250.0,0.000114,2]
[361234774,1747381832378,-58.79,0.00011706,2]
[361234775,1747381832389,-241.21,0.00011706,2]
[361234776,1747381832398,-1200.0,0.00011706,2]
[361234777,1747381832407,-1651.44880984,0.00011707,2]
[361234778,1747381832418,-1621.38146681,0.00011707,2]
[361234779,1747381832429,-14644.35769434,0.00011707,2]
[361234780,1747381832441,-1885.935,0.00011707,2]
[361234781,1747381832499,-1346.05944714,0.00011707,2]
[361234782,1747381832511,-2475.883476,0.00011707,2]
[361234786,1747381832683,-274.93410587,0.00011707,2]
[361234788,1747381832692,-202.79,0.00011752,2]
[361234790,1747381832702,-303.33273231,0.000118,2]
[361234792,1747381832711,-208.43790057,0.00011868,2]
[361234794,1747381832723,-998.40209943,0.00011868,2]
[361234796,1747381832732,-625.69,0.00011871,2]
[361234798,1747381832741,-197.42,0.00011871,2]
[361234801,1747381832751,-2599.74538277,0.00011874,2]
[361234802,1747381832762,-356.45799088,0.00011874,2]
[361234803,1747381832774,-1366.36535,0.00011874,2]
[361234804,1747381832785,-468.26544494,0.00011874,2]
[361234830,1747381833033,-2625.58823502,0.00011874,2]
[361234833,1747381833043,-394.67,0.0001194,2]
[361234835,1747381833052,-500.0,0.00012,2]
[361234836,1747381833062,-594.1,0.00012,2]
[361234837,1747381833072,-594.1,0.00012,2]
[361234839,1747381833082,-594.1,0.00012,2]
[361234841,1747381833092,-594.1,0.00012,2]
[361234842,1747381833102,-594.1,0.00012,2]
[361234843,1747381833111,-1000.0,0.00012009,2]
[361234844,1747381833121,-175.53,0.00012038,2]
[361234845,1747381833129,-250.0,0.00012065,2]
[361234846,1747381833139,-250.0,0.00012099,2]
[361234847,1747381833148,-1304.92,0.00012263,2]
[361234848,1747381833158,-288.9,0.000123,2]
[361234849,1747381833168,-162.65,0.000123,2]
[361234850,1747381833178,-162.68,0.000123,2]
[361234851,1747381833187,-1000.0,0.00012349,2]
[361234852,1747381833196,-207.4,0.00012349,2]
[361234853,1747381833206,-300.0,0.000124,4]
[361234854,1747381833216,-600.0,0.000124,4]
[361234855,1747381833227,-465.30704797,0.00012442,2]
[361234856,1747381833237,-221.97001789,0.000125,4]
[361234859,1747381838179,-478.02998211,0.000125,4]
[361234860,1747381838188,-1200.0,0.000125,4]
[361234861,1747381838197,-1100.0,0.000126,4]
[361234862,1747381838207,-1800.0,0.000126,4]
[361234863,1747381838216,-301.37242298,0.0001261,2]
[361234864,1747381838225,-459.17,0.00012678,2]
[361234865,1747381838234,-162.68,0.00012678,2]
[361234866,1747381838244,-853.73225352,0.00012693,2]
[361234867,1747381838253,-1500.0,0.000127,4]
[361234868,1747381838262,-378.64596931,0.000127,4]
[361234869,1747381838361,-656.67,0.000127,4]
[361234870,1747381838373,-1464.68403069,0.000127,4]
[361234871,1747381838382,-447.27360684,0.00012716,2]
[361234872,1747381838391,-162.14333912,0.00012795,2]
[361234873,1747381838403,-2093.21959934,0.00012795,2]
[361234874,1747381838448,-1594.10902335,0.00012795,2]
[361234875,1747381838460,-1884.01445804,0.00012795,2]
[361234876,1747381838469,-1900.0,0.000128,4]
[361234877,1747381838479,-3100.0,0.000128,4]
[361234878,1747381838490,-556.81409865,0.00012834,2]
[361234879,1747381838500,-406.77439391,0.00012834,2]
[361234880,1747381838510,-11948.75819732,0.00012834,2]
[361234881,1747381838520,-6770.95885208,0.00012841,2]
[361234883,1747381838538,-428.0472594,0.00012841,2]
[361234884,1747381838552,-1116.23617661,0.00012841,2]
[361234907,1747381840495,-3633.51590914,0.00012841,2]
[361234908,1747381840505,-233.43428541,0.00012849,2]
[361234909,1747381840516,-11715.32391182,0.00012849,2]
[361234910,1747381840525,-420.0,0.00012854,2]
[361234911,1747381840535,-11948.75819723,0.00012856,2]
[361234912,1747381840550,-11948.75819723,0.00012863,2]
[361234913,1747381840559,-11948.75819723,0.00012871,2]
[361234914,1747381840569,-1149.27719321,0.0001289,2]
[361234915,1747381840579,-162.61,0.0001289,2]
[361234916,1747381840590,-162.61,0.0001289,2]
[361234917,1747381840600,-162.61,0.0001289,2]
[361234918,1747381840609,-162.61,0.0001289,2]
[361234919,1747381840620,-162.61,0.0001289,2]
[361234920,1747381840630,-162.61,0.0001289,2]
[361234921,1747381840640,-162.61,0.0001289,2]
[361234922,1747381840650,-162.61,0.0001289,2]
[361234923,1747381840659,-162.61,0.0001289,2]
[361234924,1747381840669,-151.0,0.00012892,2]
[361234925,1747381840679,-296.77024812,0.00012892,2]
[361234926,1747381840689,-668.65185757,0.00012892,2]
[361234927,1747381840698,-1037.0,0.00012897,2]
[361234928,1747381840708,-500.0,0.00012899,2]
[361234929,1747381840718,-500.0,0.00012899,2]
[361234930,1747381840727,-156.48189922,0.00012899,2]
[361234931,1747381840736,-500.0,0.00012899,2]
[361234932,1747381840746,-500.0,0.00012899,2]
[361234933,1747381840755,-361.87060668,0.00012899,2]
[361234934,1747381840764,-300.0,0.000129,4]
[361234935,1747381840774,-1346.261,0.000129,2]
[361234936,1747381840783,-223.14919002,0.000129,2]
[361234937,1747381840793,-600.0,0.000129,4]
[361234938,1747381840802,-654722.68137519,0.000129,2]
[361234939,1747381840811,-414.40648075,0.000129,2]
[361234940,1747381840821,-938.3122472,0.00012934,2]
[361234941,1747381840830,-500.0,0.00012973,2]
[361234942,1747381840840,-500.0,0.00012973,2]
[361234943,1747381840850,-500.0,0.00012973,2]
[361234944,1747381840861,-500.0,0.00012973,2]
[361234945,1747381840871,-500.0,0.00012973,2]
[361234946,1747381840880,-500.0,0.00012973,2]
[361234947,1747381840889,-156.47663936,0.0001299,2]
[361234948,1747381840898,-156.47663936,0.0001299,2]
[361234949,1747381840908,-112921.24185164,0.00013,2]
[361234950,1747381840917,-34136.29057241,0.00013,2]
[361234951,1747381840928,-804.71484278,0.00013,2]
[361234953,1747381841009,-414.91574517,0.00013,2]
[361234954,1747381841021,-441.58,0.00013,2]
[361234955,1747381841032,-5714.97154185,0.00013,2]
[361234956,1747381841043,-758.79780336,0.00013,2]
[361234957,1747381841055,-6270.24470339,0.00013,2]
[361234958,1747381841065,-4939.780016,0.00013,2]
[361234959,1747381841076,-3070.5981233,0.00013,2]
[361234961,1747381841087,-3255.66817225,0.00013,2]
[361234962,1747381841098,-511.08466066,0.00013,2]
[361234963,1747381841121,-911.93905103,0.00013,2]
[361234964,1747381841133,-367.03000001,0.00013,2]
[361234965,1747381841144,-2113.0176,0.00013,2]
[361234966,1747381841155,-4893.18615178,0.00013,2]
[361234967,1747381841214,-21144.92651093,0.00013,2]
[361234977,1747381844035,-572.86316319,0.00012878,2]
[361234984,1747381844828,-651.55,0.00012878,2]
[361234985,1747381844840,-867.26658096,0.00012878,2]
[361234993,1747381846260,-2458.71551484,0.00012878,2]
[361235014,1747381846447,-365.26999993,0.00012878,2]
[361235016,1747381846458,-387.42082477,0.00012878,2]
[361235021,1747381846637,-635.3445,0.00012878,2]
[361235022,1747381846649,-2838.76399833,0.00012878,2]
[361235026,1747381877394,150.0,1e-08,2]
[361235028,1747382057845,356.71,0.00021945,30]
[361235029,1747382239742,1261.08,9.706e-05,2]
[361235030,1747382550498,150.0,0.00023905,120]
[361235032,1747382594476,-189.52640827,0.0001,2]
[361235033,1747382599778,-197.38024881,0.0001,2]
[361235034,1747382603580,-63.09334292,0.0001,2]
[361235035,1747382642521,150.0,0.00011513,7]
[361235144,1747383032864,-155.3925909,0.00011475,2]
[361235146,1747383032874,-3406.77281403,0.00011491,2]
[361235148,1747383032886,-2571.79212204,0.00011491,2]
[361235150,1747383032898,-1067.73506393,0.00011491,2]
[361235152,1747383032908,-250.0,0.00011575,2]
[361235154,1747383032917,-339.40098694,0.00011618,2]
[361235156,1747383032927,-1200.0,0.00011632,2]
[361235158,1747383032936,-1000.0,0.00011633,2]
[361235160,1747383032946,-433.11,0.00011667,2]
[361235162,1747383032955,-469.27,0.00011691,2]
[361235164,1747383032964,-300.0,0.00011911,2]
[361235166,1747383032974,-10529.98394913,0.00011913,2]
[361235170,1747383032995,-926.34645753,0.00011913,2]
[361235172,1747383033006,-385.98633172,0.00011913,2]
[361235174,1747383033016,-159.77,0.00011967,2]
[361235176,1747383033027,-1261.08,0.0001197,2]
[361235178,1747383033041,-159.77,0.00011974,2]
[361235180,1747383033054,-159.77,0.00011982,2]
[361235182,1747383033069,-159.77,0.00011989,2]
[361235184,1747383033079,-434.33,0.0001199,2]
[361235186,1747383033089,-159.77,0.00011997,2]
[361235188,1747383033099,-594.67,0.00012,2]
[361235190,1747383033110,-594.67,0.00012,2]
[361235192,1747383033119,-594.67,0.00012,2]
[361235194,1747383033129,-594.67,0.00012,2]
[361235196,1747383033138,-594.67,0.00012,2]
[361235198,1747383033148,-1500.0,0.00012,2]
[361235200,1747383033158,-251.57509379,0.00012,2]
[361235202,1747383033171,-248.42490621,0.00012,2]
[361235204,1747383033180,-159.77,0.00012004,2]
[361235206,1747383033189,-159.77,0.00012011,2]
[361235208,1747383033199,-159.77,0.00012019,2]
[361235210,1747383033208,-159.77,0.00012026,2]
[361235212,1747383033218,-1863.16015313,0.00012126,2]
[361235214,1747383033227,-967.58548419,0.00012167,2]
[361235216,1747383033239,-627.41451581,0.00012167,2]
[361235218,1747383033248,-677.04403122,0.00012227,2]
[361235228,1747383033329,-189.95596878,0.00012227,2]
[361235230,1747383033340,-535.56,0.00012246,2]
[361235231,1747383033350,-209.16403442,0.00012288,2]
[361235232,1747383033392,-845.72788746,0.00012288,2]
[361235233,1747383033415,-495.10807812,0.00012288,2]
[361235234,1747383033425,-6730.58249328,0.00012321,2]
[361235235,1747383033435,-151.0,0.00012349,2]
[361235236,1747383033444,-1000.0,0.00012349,2]
[361235237,1747383033454,-455.69826866,0.00012349,2]
[361235238,1747383033464,-668.65185757,0.00012349,2]
[361235239,1747383033473,-207.4,0.00012349,2]
[361235240,1747383033482,-800.0,0.000124,4]
[361235241,1747383033492,-166.81,0.00012422,2]
[361235242,1747383033501,-977.10826062,0.00012442,2]
[361235243,1747383033511,-1700.0,0.000125,4]
[361235244,1747383033520,-183.76,0.00012509,2]
[361235245,1747383033530,-789.65814988,0.00012518,2]
[361235246,1747383033541,-2730.55533889,0.00012575,2]
[361235248,1747383033550,-155.3925909,0.000126,2]
[361235250,1747383033559,-2500.0,0.000126,4]
[361235252,1747383033569,-4983.04913388,0.000127,2]
[361235254,1747383033580,-957.95086612,0.000127,2]
[361235256,1747383033590,-1148.0,0.000127,2]
[361235258,1747383033599,-518.00832468,0.000127,4]
[361235261,1747383033615,-2881.99167532,0.000127,4]
[361235263,1747383033624,-2231.591,0.000127,2]
[361235265,1747383033634,-1203.273,0.000127,2]
[361235267,1747383033644,-154.0,0.000127,2]
[361235269,1747383033653,-880.0,0.000127,2]
[361235271,1747383033663,-4200.0,0.000128,4]
[361235273,1747383033673,-1000.0,0.00012876,2]
[361235275,1747383033682,-1037.0,0.00012897,2]
[361235277,1747383033691,-693.3919763,0.00012897,2]
[361235279,1747383033701,-1077.009,0.00012899,2]
[361235281,1747383033711,-3352.9041,0.000129,2]
[361235283,1747383033720,-1277.1659864,0.000129,2]
[361235285,1747383033730,-20951.9299,0.000129,2]
[361235287,1747383033740,-187.27384115,0.000129,2]
[361235289,1747383033750,-553.8104388,0.000129,2]
[361235291,1747383033759,-219.63726768,0.000129,2]
[361235293,1747383033771,-12954.35747353,0.000129,2]
[361235295,1747383033783,-387.13222533,0.000129,2]
[361235415,1747383037436,-500.0,0.00012897,2]
[361235416,1747383037446,-131.14144959,0.00012897,2]
[361235419,1747383037536,-368.85855041,0.00012897,2]
[361235420,1747383037546,-500.0,0.00012897,2]
[361235421,1747383037555,-500.0,0.00012897,2]
[361235422,1747383037565,-524.44027611,0.00012897,2]
[361235423,1747383037574,-500.0,0.00012897,2]
[361235424,1747383037583,-500.0,0.00012897,2]
[361235425,1747383037593,-500.0,0.00012897,2]
[361235426,1747383037605,-500.0,0.00012897,2]
[361235427,1747383037615,-500.0,0.00012897,2]
[361235428,1747383037625,-500.0,0.00012897,2]
[361235429,1747383037635,-500.0,0.00012897,2]
[361235430,1747383037644,-500.0,0.00012897,2]
[361235431,1747383037655,-500.0,0.00012897,2]
[361235432,1747383037665,-500.0,0.00012897,2]
[361235433,1747383037674,-500.0,0.00012897,2]
[361235434,1747383037684,-500.0,0.00012897,2]
[361235435,1747383037694,-500.0,0.00012897,2]
[361235436,1747383037704,-500.0,0.00012897,2]
[361235437,1747383037714,-625.2563,0.000129,2]
[361235438,1747383037724,-5690.69812408,0.000129,2]
[361235439,1747383037736,-2732.30488801,0.000129,2]
[361235440,1747383037747,-447.80016491,0.000129,2]
[361235441,1747383037764,-531.63683674,0.000129,2]
[361235442,1747383037812,-1475.17585995,0.000129,2]
[361235443,1747383037824,-3279.73300446,0.000129,2]
[361235444,1747383037836,-629.28633544,0.000129,2]
[361235448,1747383039647,-657.96086,0.000129,2]
[361235450,1747383039937,-10231.75243445,0.000129,2]
[361235451,1747383039947,-800.0,0.000129,4]
[361235452,1747383039957,-1000.0,0.000129,3]
[361235453,1747383039966,-1000.0,0.000129,3]
[361235454,1747383039975,-566.92917316,0.000129,2]
[361235455,1747383039985,-1027.0,0.000129,3]
[361235456,1747383039994,-1000.0,0.000129,3]
[361235457,1747383040004,-1000.0,0.000129,3]
[361235458,1747383040013,-1000.0,0.000129,3]
[361235459,1747383040023,-1000.0,0.000129,3]
[361235460,1747383040033,-1000.0,0.000129,3]
[361235461,1747383040042,-414.40648075,0.000129,2]
[361235462,1747383040052,-1000.0,0.000129,3]
[361235463,1747383040067,-1000.0,0.000129,4]
[361235464,1747383040076,-1000.0,0.000129,4]
[361235465,1747383040086,-1000.0,0.000129,2]
[361235466,1747383040095,-410.38212168,0.000129,2]
[361235467,1747383040106,-1004.0,0.000129,3]
[361235468,1747383040115,-1006.0,0.000129,3]
[361235469,1747383040125,-1277.1659864,0.000129,2]
[361235470,1747383040138,-938.3122472,0.00012934,2]
[361235471,1747383040148,-500.0,0.00012973,2]
[361235473,1747383040158,-500.0,0.00012973,2]
[361235475,1747383040168,-500.0,0.00012973,2]
[361235477,1747383040177,-500.0,0.00012973,2]
[361235479,1747383040186,-500.0,0.00012973,2]
[361235481,1747383040195,-500.0,0.00012973,2]
[361235483,1747383040204,-503.0,0.00012986,2]
[361235485,1747383040214,-156.47663936,0.0001299,2]
[361235487,1747383040224,-156.47663936,0.0001299,2]
[361235489,1747383040233,-500.0,0.00012999,2]
[361235491,1747383040242,-303.30942467,0.00012999,2]
[361235493,1747383040251,-500.0,0.00012999,2]
[361235495,1747383040260,-459.53732945,0.00012999,2]
[361235497,1747383040269,-521.0,0.00013,2]
[361235499,1747383040278,-113181.67829179,0.00013,2]